[Event "XVII Profigaia Open 2017"]
[Site "Gaia"]
[Date "2017.06.15"]
[Round "2"]
[White "Andrade Sandoval, Jim Carlos"]
[Black "De Souza Monteiro, Marcos Paulo"]
[Result "1-0"]
[ECO "D35"]
[WhiteElo "1971"]
[BlackElo "1961"]
[Annotator "NA RC"]
[PlyCount "109"]
[EventDate "2017.??.??"]
[EventType "swiss"]
[EventCountry "POR"]
[SourceTitle "playchess.com"]
[Source "ChessBase"]
[SourceQuality "1"]
[TimeControl "5400+30"]

{[%evp 23,109,20,50,32767,61,56,32767,32767,81,32767,32767,85,91,32767,32767,32767,32767,32767,38,33,58,33,72,32767,32767,32767,32767,32767,32767,32767,32767,32767,32767,18,146,166,32767,456,1020,44,41,32767,736,32767,32767,841,810,905,811,802,29993,477,426,32767,32767,32767,32767,127,32767,32767,116,78,107,111,107,32767,498,529,491,643,602,763,682,676,825,1018,731,717,5714,2017,5189,1836,1235,4133,12841,29978,29978,12845]} 1. d4 {[%emt 0:00:00]} Nf6 {[%emt 0:00:05]} 2. c4 {[%emt 0:00:00]} e6 {[%emt 0:00:07]} 3. Nc3 {[%emt 0:00:00]} d5 {[%emt 0:00:06]} 4. cxd5 {[%emt 0:00:00]} exd5 {[%emt 0:00:30]} 5. Bg5 {[%emt 0:00:00]} c6 {[%emt 0:00:00]} 6. e3 {[%emt 0:00:24]} Be7 {[%emt 0:00:13]} 7. Bd3 {[%emt 0:00:00]} Nbd7 {[%emt 0:00:21]} 8. Qc2 {[%emt 0:00:07]} O-O {[%emt 0:00:53]} 9. Nf3 {[%emt 0:00:08]} Re8 {[%emt 0:00:18]} 10. O-O {[%emt 0:02:00]} h6 {[%emt 0:05:41]} 11. Bf4 {[%emt 0:03:06]} Nf8 {[%emt 0:05:52]} 12. Rab1 {[%emt 0:05:47]} Bg4 {[%emt 0:13:38] D36: Queen's Gambit Declined: Exchange Variation: Main line (5 Bg5 c6 6 Qc2)} (12... Nh5 13. Be5 Bg4 14. Nd2 Nd7 15. h3 Be6 16. Bh2 Rc8 17. b4 b5 18. a4 a5 19. axb5 axb4 20. Na2 cxb5 21. Qb2 Qa5 22. Nb3 Qb6 23. Qe2 Nhf6 24. Bxb5 Ne4 25. Rfc1 Rxc1+ 26. Rxc1 {½-½ (26) Georgiev,V (2511)-Medina,W (2351) Albena 2014}) 13. Ne5 {[%emt 0:02:20]} Be6 {[%emt 0:18:51]} 14. h3 {[%emt 0:03:52]} Nh5 $146 {[%emt 0:15:49]} ({Predecessor:} 14... Qc8 15. b4 a6 16. Rfc1 Bd6 17. a4 Qd8 18. b5 axb5 19. axb5 Rc8 20. bxc6 bxc6 {1-0 (29) Flear,C (2235)-Barakoff,A Toulouse 1995}) 15. Bh2 {[%emt 0:00:07]} Bd6 {[%emt 0:03:18]} 16. f4 {[%emt 0:09:19]} Qh4 {[%emt 0:19:37]} 17. Rf3 {[%emt 0:00:08]} Qe7 {[%emt 0:13:15]} 18. Rbf1 {[%emt 0:08:22]} Nf6 {[%emt 0:04:04]} 19. a3 {[%emt 0:32:14]} c5 {[%emt 0:00:31]} 20. Nb5 {[%emt 0:01:09]} cxd4 {[%emt 0:01:09]} 21. Nxd6 {[%emt 0:00:08]} Qxd6 {[%emt 0:00:10]} 22. exd4 Rec8 {[%emt 0:01:14]} 23. Qe2 {[%emt 0:10:35]} Qb6 {[%emt 0:00:17]} 24. Kh1 {[%emt 0:04:03]} Qxd4 {[%emt 0:01:02]} 25. Bg1 {[%emt 0:00:07]} Qa4 {[%emt 0:00:07]} 26. f5 {[%emt 0:00:12]} Bd7 {[%emt 0:00:21]} 27. Rf4 {[%emt 0:00:11]} Qa5 {[%emt 0:00:32]} 28. Bd4 {[%emt 0:00:48]} Re8 {[%emt 0:00:48]} ({Black should try} 28... N8h7 $1 $14) 29. Qf3 {[%emt 0:04:39]} Bb5 {[%emt 0:00:46] [#]} 30. Ng4 $1 {[%emt 0:04:15]} Ne4 {[%emt 0:00:49]} (30... N8d7 $142 31. Bxf6 Nxf6 32. Nxf6+ gxf6 33. Qxd5 Rad8 34. Rg4+ Kf8 35. Qc5+ Re7) 31. Bxb5 $2 {[%emt 0:05:35]} ({White should try} 31. f6 $18) 31... Qxb5 {[%emt 0:00:08]} 32. Nxh6+ {[%emt 0:00:05]} Kh7 $2 {[%emt 0:01:11]} (32... gxh6 $11 33. Rg4+ Ng5) 33. Nxf7 {[%emt 0:00:24]} Qxf1+ {[%emt 0:00:07]} 34. Qxf1 {[%emt 0:00:39]} Ng3+ {[%emt 0:00:06]} 35. Kg1 {[%emt 0:00:23]} Nxf1 {[#]} 36. Rg4 $1 {[%emt 0:01:12]} g6 {[%emt 0:00:45]} 37. Ng5+ {[%emt 0:03:19]} (37. Rh4+ $142 Kg8 38. Ng5 Re5 39. Bxe5 Nh7 40. Rxh7 Kf8 41. Bf6 Ke8 42. Ne6 gxf5 43. Re7#) 37... Kh6 {[%emt 0:01:01]} 38. Nf7+ {[%emt 0:01:45]} Kh7 {[%emt 0:00:11]} 39. Kxf1 {[%emt 0:01:04]} Re7 {[%emt 0:01:12]} 40. Ng5+ $2 {[%emt 0:00:48]} (40. Rh4+ $18 {is the precise move to win.} Kg8 41. Nh6+ Kh7 42. Ng4+ Kg8 43. Rh8+ Kf7 44. Nh6+ Ke8 45. fxg6) 40... Kg8 {[%emt 0:00:41]} 41. f6 {[%emt 0:00:20]} Rc7 {[%emt 0:00:18]} 42. f7+ {[%emt 0:00:27]} Rxf7+ {[%emt 0:00:11]} 43. Nxf7 {[%emt 0:00:01]} Kxf7 {[%emt 0:00:06]} 44. Rf4+ {[%emt 0:00:24]} Ke7 $2 {[%emt 0:00:43]} (44... Ke6 $14) 45. Bc5+ {[%emt 0:00:06]} Ke6 {[%emt 0:00:24]} 46. Rxf8 {[%emt 0:00:06]} Rxf8+ {[%emt 0:00:09]} 47. Bxf8 {[%emt 0:00:06]} Ke5 {[%emt 0:00:07]} 48. Ke2 {[%emt 0:00:08]} Ke4 {[%emt 0:00:07]} 49. Bd6 {[%emt 0:00:40]} d4 {[%emt 0:00:38]} 50. Kd2 {[%emt 0:00:53]} b5 {[%emt 0:00:17]} 51. b3 {[%emt 0:00:20]} a6 {[%emt 0:00:05]} 52. Bg3 {[%emt 0:00:24]} d3 {[%emt 0:01:36]} 53. Bf2 {[%emt 0:00:22]} a5 {[%emt 0:00:44]} 54. a4 {[%emt 0:00:09]} bxa4 {[%emt 0:00:59]} 55. bxa4 $18 {[%emt 0:00:07]} 1-0

[Event "XVII Profigaia Open 2017"]
[Site "Gaia"]
[Date "2017.06.15"]
[Round "2"]
[White "Silva, Mariana Sofia T"]
[Black "Ribeiro, Andre Amorim"]
[Result "1-0"]
[ECO "B32"]
[WhiteElo "1922"]
[BlackElo "1463"]
[Annotator "NA"]
[PlyCount "71"]
[EventDate "2017.??.??"]
[EventType "swiss"]
[EventCountry "POR"]
[SourceTitle "playchess.com"]
[Source "ChessBase"]
[SourceQuality "1"]
[TimeControl "5400+30"]

{[%evp 8,71,19,16,10,18,28,19,51,30,48,43,38,41,32767,32767,32767,32767,32767,32767,32767,32767,32767,32767,57,45,58,62,64,32767,137,141,175,122,32767,32767,32767,32767,32767,32767,32767,32767,32767,32767,32767,340,32767,32767,32767,345,32767,32767,32767,32767,366,319,326,354,1443,1992,1172,1274,29994,32767,32767,29997]} 1. e4 {[%emt 0:00:00]} c5 {[%emt 0:08:48]} 2. Nf3 {[%emt 0:00:00]} Nc6 {[%emt 0:00:07]} 3. d4 {[%emt 0:00:00]} cxd4 {[%emt 0:00:06]} 4. Nxd4 {[%emt 0:00:04]} e5 {[%emt 0:00:05]} 5. Nb5 {[%emt 0:00:54]} d6 {[%emt 0:01:04]} 6. N1c3 {[%emt 0:01:37]} a6 {[%emt 0:00:40]} 7. Na3 {[%emt 0:00:06]} Nf6 {[%emt 0:02:05]} 8. Bg5 {[%emt 0:01:26]} Be7 {[%emt 0:00:26]} 9. Bxf6 {[%emt 0:03:54]} Bxf6 {[%emt 0:00:14]} 10. Nc4 {[%emt 0:02:32] LiveBook: 8 Games} Be7 {[%emt 0:05:29] B33: Sicilian: Pelikan and Sveshnikov Variations} (10... Nd4 11. Nd5 b5 12. Ncb6 Rb8 13. Nxc8 Rxc8 14. c3 Nc6 15. a4 b4 16. Bxa6 Bg5 17. Qg4 Rb8 18. Bb5 {1-0 (19) Di Berardino,D (2484)-Silva,F (2268) Itajai 2014}) 11. Nd5 {[%emt 0:01:40]} b5 {[%emt 0:01:01]} 12. Nxe7 {[%emt 0:01:05]} Kxe7 {[%emt 0:00:07]} 13. Ne3 {[%emt 0:00:26]} Qa5+ $146 {[%emt 0:03:04]} ({Predecessor:} 13... Be6 14. Qd2 Qc7 15. g3 Rhd8 16. Bg2 Kf8 17. O-O Ne7 18. a4 {1-0 (31) Md,S (2135)-Md Emdadul,H (1972) Dhaka 2015}) 14. c3 {[%emt 0:01:26]} Be6 {[%emt 0:00:06]} 15. Be2 {[%emt 0:05:41]} b4 {[%emt 0:13:17]} 16. O-O {[%emt 0:05:44]} bxc3 {[%emt 0:01:49]} 17. bxc3 {[%emt 0:00:08]} Rhd8 {[%emt 0:01:32]} 18. Bg4 {[%emt 0:03:25]} g6 {[%emt 0:09:30]} (18... Kf8 $14) 19. Bxe6 {[%emt 0:00:30]} fxe6 {[%emt 0:00:07]} 20. Qg4 {[%emt 0:01:04]} Qc7 {[%emt 0:02:11]} 21. Qh4+ {[%emt 0:01:07]} Ke8 {[%emt 0:05:32]} 22. Ng4 {[%emt 0:06:19]} Ra7 {[%emt 0:17:25]} 23. f4 {[%emt 0:02:41]} Kd7 {[%emt 0:03:57]} 24. Qxh7+ {[%emt 0:00:55]} Kc8 {[%emt 0:00:08]} 25. Qxg6 {[%emt 0:01:13]} Qe7 {[%emt 0:02:48]} 26. fxe5 {[%emt 0:01:45]} dxe5 {[%emt 0:00:59]} 27. Nh6 {[%emt 0:04:43]} Qc5+ {[%emt 0:01:23]} 28. Kh1 {[%emt 0:00:29]} Re7 {[%emt 0:00:57]} 29. Nf7 {[%emt 0:04:46]} Rdd7 {[%emt 0:01:53]} 30. Qh5 {[%emt 0:05:55]} Kc7 {[%emt 0:03:44]} 31. Rad1 {[%emt 0:03:36]} Rxd1 {[%emt 0:02:24]} 32. Qxd1 {[%emt 0:00:34]} ({Weaker is} 32. Rxd1 Qxc3 33. Ng5 Kb7 $18) 32... Na5 $2 {[%emt 0:01:58]} (32... Rd7) 33. Qd8+ {[%emt 0:01:01]} Kc6 {[%emt 0:00:57]} 34. Nxe5+ {[%emt 0:02:12]} Kb5 {[%emt 0:00:55]} 35. Rb1+ {[%emt 0:01:39]} Ka4 {[%emt 0:00:07]} 36. Qd1+ {[%emt 0:00:59]} 1-0

[Event "XVII Profigaia Open 2017"]
[Site "Gaia"]
[Date "2017.06.15"]
[Round "2"]
[White "Antao, Jorge"]
[Black "Coimbra, Joao Marcial Ferrei"]
[Result "1-0"]
[ECO "A04"]
[WhiteElo "1873"]
[BlackElo "1402"]
[Annotator "NA"]
[PlyCount "87"]
[EventDate "2017.??.??"]
[EventType "swiss"]
[EventCountry "POR"]
[SourceTitle "playchess.com"]
[Source "ChessBase"]
[SourceQuality "1"]
[TimeControl "5400+30"]

1. Nf3 c6 2. b3 d6 3. Bb2 h6 4. d3 Bg4 5. e4 Nd7 6. h3 Bxf3 7. Qxf3 e5 8. Nc3 Qf6 9. Qe2 Ne7 10. O-O-O Ng6 11. g3 Be7 12. f4 exf4 13. Nd5 Qg5 14. Nc7+ Kf8 15. Nxa8 fxg3+ 16. Rd2 Qa5 17. Kb1 Bg5 18. Rd1 h5 19. Qe1 Qxe1 20. Rxe1 h4 21. Bc1 Be7 22. Bg2 Bf6 23. Ref1 Bd4 24. Rf5 Nge5 25. Nc7 Rh7 26. Ne6+ Ke7 27. Nxd4 f6 28. Rf4 g6 29. Ne2 c5 30. Nc3 g5 31. Rf5 a6 32. Rhf1 b5 33. Nd5+ Kd8 34. Nxf6 Nxf6 35. Bxg5 Kc7 36. Bxf6 Kc6 37. Bxe5 c4 38. Bd4 cxb3 39. cxb3 b4 40. e5+ d5 41. Rf6+ Kb5 42. Bxd5 Rd7 43. Bc4+ Ka5 44. Rxa6# 1-0

[Event "XVII Profigaia Open 2017"]
[Site "Gaia"]
[Date "2017.06.15"]
[Round "2"]
[White "Da Silva Junior, Antonio Gomes"]
[Black "Oliveira, Maria Alice Ramos M"]
[Result "0-1"]
[ECO "C54"]
[WhiteElo "1846"]
[BlackElo "1561"]
[Annotator "NA"]
[PlyCount "60"]
[EventDate "2017.??.??"]
[EventType "swiss"]
[EventCountry "POR"]
[SourceTitle "playchess.com"]
[Source "ChessBase"]
[SourceQuality "1"]
[TimeControl "5400+30"]

1. e4 e5 {[%emt 0:00:04]} 2. Nf3 {[%emt 0:00:00]} Nc6 {[%emt 0:00:07]} 3. Bc4 {[%emt 0:01:00]} Bc5 {[%emt 0:00:05]} 4. c3 {[%emt 0:00:55]} Nf6 {[%emt 0:00:07]} 5. d4 {[%emt 0:01:12]} exd4 {[%emt 0:00:06]} 6. cxd4 {[%emt 0:01:33]} Bb4+ {[%emt 0:00:07]} 7. Bd2 {[%emt 0:00:54]} Bxd2+ {[%emt 0:00:08]} 8. Nbxd2 {[%emt 0:00:08]} d5 {[%emt 0:00:05]} 9. exd5 {[%emt 0:00:37]} Nxd5 {[%emt 0:00:07]} 10. h3 {[%emt 0:02:28]} O-O {[%emt 0:03:18]} 11. O-O {[%emt 0:01:31]} Nb6 {[%emt 0:04:00]} 12. Bd3 {[%emt 0:13:35] C54: Giuoco Piano: 4 c3 Nf6, main lines with 5 d4 and 5 d3} Nxd4 {[%emt 0:04:52]} 13. Nxd4 {[%emt 0:01:03]} Qxd4 {[%emt 0:00:10]} 14. Qc2 {[%emt 0:01:02]} h6 {[%emt 0:03:26]} 15. Nf3 {[%emt 0:03:49]} (15. Nb3 Qf4 16. Be4 c6 17. Nc5 Nd7 18. Rfe1 Nxc5 19. Qxc5 Be6 {0-1 (50) Machan,J (2012)-Sergienko,S (2411) Nachod 2011}) 15... Qf4 {[%emt 0:02:03]} 16. Nh2 {[%emt 0:04:47]} (16. Rfe1 $15) 16... c6 {[%emt 0:01:43]} 17. Rfe1 {[%emt 0:02:33]} Be6 $146 {[%emt 0:01:46]} ({Predecessor:} 17... Nd5 18. g3 Qf6 19. Bf1 Bf5 {0-1 (58) Grebenshikova,T (2090)-Vorobjov,D (2138) Tula 2004}) 18. Re4 {[%emt 0:03:11]} Qc7 {[%emt 0:02:14]} 19. b3 {[%emt 0:09:57]} Rad8 {[%emt 0:05:28]} 20. Rd1 {[%emt 0:09:03]} Nd5 {[%emt 0:06:56]} 21. Bc4 {[%emt 0:08:28]} Bf5 {[%emt 0:09:30]} 22. Rde1 {[%emt 0:07:22]} Bxe4 {[%emt 0:01:04]} 23. Rxe4 {[%emt 0:00:31]} Nf6 {[%emt 0:00:47]} 24. Re1 {[%emt 0:01:11]} Rfe8 {[%emt 0:00:27]} 25. Rxe8+ {[%emt 0:01:41]} Rxe8 {[%emt 0:00:06]} 26. Nf3 {[%emt 0:00:44]} Qf4 {[%emt 0:02:35]} 27. Nh2 {[%emt 0:05:22]} Re1+ {[%emt 0:01:32]} 28. Nf1 $19 {[%emt 0:00:14]} Ne4 {[%emt 0:05:37]} 29. f3 {[%emt 0:04:38]} Nd2 {[%emt 0:02:02]} 30. Bd3 {[%emt 0:01:16]} Qe3+ 0-1

[Event "XVII Profigaia Open 2017"]
[Site "Gaia"]
[Date "2017.06.15"]
[Round "2"]
[White "Catarro, Jose Joao Dias"]
[Black "Frois, Antonio"]
[Result "0-1"]
[ECO "A00"]
[WhiteElo "1833"]
[BlackElo "2278"]
[Annotator "NA"]
[PlyCount "78"]
[EventDate "2017.??.??"]
[EventType "swiss"]
[EventCountry "POR"]
[SourceTitle "playchess.com"]
[Source "ChessBase"]
[SourceQuality "1"]
[TimeControl "5400+30"]

1. b4 {[%emt 0:00:00]} e5 {[%emt 0:00:08]} 2. Bb2 {[%emt 0:00:00]} d6 {[%emt 0:00:16]} 3. e3 {[%emt 0:00:00]} f5 {[%emt 0:00:43]} 4. Nf3 {[%emt 0:02:04] A00: Irregular Openings} Nf6 {[%emt 0:00:18]} 5. Be2 {[%emt 0:00:58]} (5. a3 g6 6. Bc4 Bg7 7. Bb3 Qe7 8. d4 e4 9. Ng5 h6 10. Nh3 {1-0 (59) Petkov,V (2481)-Kuzubov,Y (2636) Kragujevac 2015}) 5... Be7 {[%emt 0:00:32]} 6. O-O {[%emt 0:00:19]} O-O {[%emt 0:00:05]} 7. c4 {[%emt 0:00:10]} Kh8 {[%emt 0:00:09]} 8. d3 {[%emt 0:03:52]} Be6 {[%emt 0:02:42]} 9. Nbd2 {[%emt 0:01:05]} Nbd7 {[%emt 0:00:26]} 10. Qc2 {[%emt 0:01:14]} Qe8 $146 {[%emt 0:00:05]} ({Predecessor:} 10... Ng4 11. d4 {0-1 (27) Pfueller,V (1795)-Rickers,G (2150) Germany 2009}) 11. Rfe1 {[%emt 0:01:17]} h6 12. a4 {[%emt 0:06:56]} Bg8 {[%emt 0:01:49]} 13. Nf1 {[%emt 0:02:00]} Bh7 {[%emt 0:00:29]} 14. d4 {[%emt 0:05:24]} f4 {[%emt 0:05:28]} 15. Qb3 {[%emt 0:00:50]} e4 {[%emt 0:00:11]} 16. N3d2 {[%emt 0:01:13]} fxe3 {[%emt 0:10:11]} 17. Qxe3 {[%emt 0:03:17]} ({White should try} 17. Nxe3 $14 c6 18. a5) 17... d5 {[%emt 0:01:27]} 18. b5 {[%emt 0:05:48]} dxc4 {[%emt 0:03:18]} 19. Nxc4 {[%emt 0:03:15]} Bb4 {[%emt 0:09:10]} 20. Rec1 {[%emt 0:05:31]} Nd5 {[%emt 0:00:06]} 21. Qb3 {[%emt 0:01:43]} Qf7 {[%emt 0:02:24]} 22. Qg3 {[%emt 0:00:01]} Nf4 {[%emt 0:02:36]} 23. Qe3 {[%emt 0:01:46]} Be7 {[%emt 0:10:38]} 24. Ba3 {[%emt 0:05:55]} Rae8 {[%emt 0:03:36]} 25. Bxe7 {[%emt 0:01:38]} Rxe7 {[%emt 0:00:15]} 26. Ng3 {[%emt 0:00:16]} Nd5 {[%emt 0:00:45]} 27. Qd2 {[%emt 0:02:40]} Qxf2+ {[%emt 0:00:17]} 28. Kh1 {[%emt 0:00:07]} Nf4 $2 {[%emt 0:03:15]} (28... e3 $19 29. Qd1 Nf4) 29. Bf1 {[%emt 0:00:26]} Qxd2 {[%emt 0:00:10]} 30. Nxd2 {[%emt 0:00:12]} e3 {[%emt 0:04:33]} 31. Re1 {[%emt 0:00:18]} Rfe8 {[%emt 0:01:01]} 32. Nc4 {[%emt 0:01:09]} e2 {[%emt 0:00:33]} 33. Kg1 {[%emt 0:08:13]} Bd3 {[%emt 0:00:26]} 34. Ne5 {[%emt 0:00:22]} Nxe5 {[%emt 0:00:54]} 35. dxe5 {[%emt 0:02:15]} Rxe5 $19 {[%emt 0:00:21]} 36. Bxe2 {[%emt 0:00:12]} Nxe2+ {[%emt 0:00:07]} 37. Nxe2 {[%emt 0:00:10]} Rxe2 {[%emt 0:00:05]} 38. Rxe2 {[%emt 0:00:19]} Rxe2 {[%emt 0:00:05]} 39. Rd1 {[%emt 0:00:21]} Be4 {[%emt 0:00:06]} 0-1

[Event "XVII Profigaia Open 2017"]
[Site "Gaia"]
[Date "2017.06.15"]
[Round "2"]
[White "Araujo, Jose Verissimo"]
[Black "Alves, Damiao Fernando"]
[Result "1/2-1/2"]
[ECO "A05"]
[WhiteElo "1809"]
[BlackElo "1368"]
[Annotator "NA"]
[PlyCount "63"]
[EventDate "2017.??.??"]
[EventType "swiss"]
[EventCountry "POR"]
[SourceTitle "playchess.com"]
[Source "ChessBase"]
[SourceQuality "1"]
[TimeControl "5400+30"]

1. Nf3 {[%emt 0:05:05]} Nf6 {[%emt 0:02:00]} 2. g3 {[%emt 0:01:02]} b6 {[%emt 0:01:20]} 3. Bg2 {[%emt 0:00:13]} Bb7 {[%emt 0:00:06]} 4. O-O {[%emt 0:00:23]} e6 {[%emt 0:00:12]} 5. d4 {[%emt 0:01:25]} c5 {[%emt 0:01:45]} 6. c4 {[%emt 0:02:21] LiveBook: 489 Games} cxd4 {[%emt 0:02:36]} 7. Nxd4 {[%emt 0:02:37]} Bxg2 {[%emt 0:00:21]} 8. Kxg2 {[%emt 0:00:07]} Nc6 {[%emt 0:03:30]} 9. Nxc6 $11 {[%emt 0:01:55]} dxc6 {[%emt 0:00:10]} 10. Qa4 {[%emt 0:00:44]} Qc7 {[%emt 0:01:46]} 11. Bf4 {[%emt 0:01:16]} Bd6 {[%emt 0:02:42]} 12. Bxd6 {[%emt 0:02:41]} Qxd6 {[%emt 0:00:08]} 13. Rd1 {[%emt 0:00:18]} Qc7 {[%emt 0:01:05]} 14. Nc3 {[%emt 0:00:30]} O-O {[%emt 0:00:37]} 15. Rd2 {[%emt 0:02:56]} Rfd8 {[%emt 0:02:05]} 16. Rad1 {[%emt 0:00:21]} Rd7 {[%emt 0:00:44]} 17. Rxd7 {[%emt 0:01:55]} Nxd7 {[%emt 0:00:09]} 18. Ne4 {[%emt 0:01:17]} h6 {[%emt 0:07:08]} 19. Qa3 {[%emt 0:04:26]} c5 {[%emt 0:02:50]} 20. Qf3 {[%emt 0:04:18]} Rf8 {[%emt 0:07:02]} 21. b3 {[%emt 0:09:05]} Ne5 {[%emt 0:03:34]} 22. Qf4 {[%emt 0:02:15]} Qb8 {[%emt 0:00:20]} 23. Rd6 {[%emt 0:07:26]} Ng6 {[%emt 0:01:56]} 24. Qd2 {[%emt 0:01:25]} Ne7 {[%emt 0:06:12]} 25. e3 {[%emt 0:06:16]} Qa8 {[%emt 0:01:25]} 26. f3 {[%emt 0:00:55]} Nc6 {[%emt 0:01:34]} 27. Nc3 {[%emt 0:07:27]} Rd8 {[%emt 0:01:06]} 28. Rxd8+ {[%emt 0:01:18]} Qxd8 {[%emt 0:00:09]} 29. Qxd8+ {[%emt 0:01:03]} Nxd8 {[%emt 0:00:08]} 30. Kf2 {[%emt 0:00:46]} Nc6 {[%emt 0:00:45]} 31. Ke2 {[%emt 0:01:02]} Kf8 32. Kd2 1/2-1/2

[Event "XVII Profigaia Open 2017"]
[Site "Gaia"]
[Date "2017.06.15"]
[Round "2"]
[White "Areal, Pedro"]
[Black "Marrios, Ruben"]
[Result "1-0"]
[ECO "D00"]
[WhiteElo "1771"]
[BlackElo "1315"]
[Annotator "NA"]
[PlyCount "105"]
[EventDate "2017.??.??"]
[EventType "swiss"]
[EventCountry "POR"]
[SourceTitle "playchess.com"]
[Source "ChessBase"]
[SourceQuality "1"]
[TimeControl "5400+30"]

1. d4 d5 {[%emt 0:01:58]} 2. Bg5 {[%emt 0:08:04]} h6 {[%emt 0:02:19]} 3. Bh4 g5 4. Bg3 {[%emt 0:06:30]} Bg7 {[%emt 0:00:53]} 5. e3 {[%emt 0:00:30]} Nf6 {[%emt 0:00:30]} 6. c4 {[%emt 0:00:30]} e6 {[%emt 0:03:41]} 7. Nc3 {[%emt 0:07:39]} Nc6 8. Nb5 {[%emt 0:03:44]} O-O {[%emt 0:04:30]} 9. Nxc7 {[%emt 0:02:43]} Rb8 {[%emt 0:01:08]} 10. Nb5 Ra8 {[%emt 0:00:14]} 11. Rc1 {[%emt 0:02:31]} a6 {[%emt 0:01:13]} 12. Nc3 {[%emt 0:01:03]} Re8 {[%emt 0:01:59]} 13. cxd5 {[%emt 0:04:42]} exd5 {[%emt 0:00:30]} 14. Bd3 {[%emt 0:01:13]} Be6 {[%emt 0:04:33]} 15. Nf3 {[%emt 0:09:53]} Bg4 {[%emt 0:04:05]} 16. O-O {[%emt 0:06:37]} Ne4 {[%emt 0:08:56]} 17. Be2 {[%emt 0:04:31]} Bf5 {[%emt 0:08:27]} 18. Nxe4 {[%emt 0:05:11]} Bxe4 {[%emt 0:01:13]} 19. a3 {[%emt 0:02:49]} Qe7 {[%emt 0:04:30]} 20. Bd3 {[%emt 0:03:42]} f5 {[%emt 0:04:09]} 21. Be5 {[%emt 0:04:58]} g4 {[%emt 0:18:54]} 22. Bxg7 {[%emt 0:01:29]} Kxg7 {[%emt 0:01:57]} 23. Bxe4 {[%emt 0:02:41]} Qxe4 {[%emt 0:03:19]} 24. Nd2 {[%emt 0:02:20]} Qe6 {[%emt 0:00:40]} 25. Rc5 {[%emt 0:01:41]} h5 {[%emt 0:01:34]} 26. Qb3 {[%emt 0:01:04]} Ne7 {[%emt 0:02:58]} 27. Rc7 {[%emt 0:03:48]} b5 {[%emt 0:01:53]} 28. Rfc1 {[%emt 0:01:52]} Rec8 {[%emt 0:01:11]} 29. Qb4 {[%emt 0:00:47]} Kf6 {[%emt 0:02:50]} 30. g3 {[%emt 0:05:36]} Rxc7 {[%emt 0:01:58]} 31. Rxc7 {[%emt 0:00:01]} Rc8 {[%emt 0:00:16]} 32. Qc5 {[%emt 0:00:32]} Rxc7 {[%emt 0:01:47]} 33. Qxc7 {[%emt 0:00:01]} Kf7 {[%emt 0:00:19]} 34. Nb3 {[%emt 0:01:50]} Qe4 {[%emt 0:01:06]} 35. Qc1 {[%emt 0:00:03]} Qe6 {[%emt 0:01:08]} 36. Nc5 {[%emt 0:00:14]} Qc6 {[%emt 0:00:27]} 37. Qc3 {[%emt 0:00:09]} Ng6 {[%emt 0:00:51]} 38. Qa5 {[%emt 0:00:07]} Ne7 {[%emt 0:01:07]} 39. Qxa6 {[%emt 0:00:07]} Qxa6 {[%emt 0:00:13]} 40. Nxa6 {[%emt 0:00:10]} Ke6 {[%emt 0:00:00]} 41. Nc7+ {[%emt 0:00:19]} Kd6 {[%emt 0:00:10]} 42. Nxb5+ {[%emt 0:00:05]} Kc6 {[%emt 0:00:15]} 43. Nc3 {[%emt 0:00:26]} Ng6 {[%emt 0:00:14]} 44. Kg2 {[%emt 0:00:11]} h4 {[%emt 0:00:45]} 45. gxh4 {[%emt 0:01:04]} Nxh4+ {[%emt 0:00:07]} 46. Kg3 {[%emt 0:00:14]} Ng6 {[%emt 0:00:46]} 47. b4 {[%emt 0:00:15]} Ne7 {[%emt 0:00:35]} 48. Kf4 {[%emt 0:00:41]} Kd6 {[%emt 0:00:31]} 49. a4 {[%emt 0:01:29]} Ke6 {[%emt 0:00:22]} 50. b5 {[%emt 0:00:24]} Ng6+ {[%emt 0:00:29]} 51. Kg5 {[%emt 0:00:42]} Ne7 {[%emt 0:00:32]} 52. a5 {[%emt 0:00:21]} Kd6 {[%emt 0:00:15]} 53. Kf6 {[%emt 0:00:18]} 1-0